Cogmind - Beta 10.2 @@@ ROGUE MODE // 2021.09.02 @ 18:27:05 Player: Cracklepappy Result: Destroyed by G-34 Mercenary with Small Laser Performance ------------- Evolutions (0) 0 Regions Visited (4) 800 Robots Destroyed (35) 175 Value Destroyed (838) 838 Prototype IDs (4) 80 Alien Tech Used (0) 0 Bonus (0) 0 TOTAL SCORE: 1893 Bonus ------- None Cogmind --------- Core Integrity 0/250 Matter 212/300 Energy 250/250 System Corruption 0% Temperature Cool (6) Movement Treading (180) Ox1 Location -9/Mines Parts ------- > --- POWER (1) -------- Ion Engine > --- PROPULSION (2) --- Light Treads Light Treads > --- UTILITY (2) ------ High-capacity Storage Unit High-capacity Storage Unit > --- WEAPON (2) ------- Heavy Assault Rifle Heavy Assault Rifle > --- INVENTORY (20) --- Light Ion Engine Light Treads Aluminum Leg Aluminum Leg Medium Storage Unit Large Storage Unit High-capacity Storage Unit High-capacity Storage Unit High-capacity Storage Unit Medium Matter Pod (0) Light Armor Plating EM Shotgun EM Shotgun Heavy Assault Rifle Mini Grenade Launcher Mini Grenade Launcher Mini Grenade Launcher Datajack Mining Laser Peak State ------------ > --- POWER ------------ Ion Engine > --- PROPULSION ------- Light Treads Light Treads > --- UTILITY ---------- Large Storage Unit Large Storage Unit > --- WEAPON ----------- EM Shotgun EM Shotgun > --- INVENTORY -------- Ion Engine Light Ion Engine Light Treads Aluminum Leg Aluminum Leg Medium Storage Unit Medium Storage Unit EM Shotgun EM Shotgun Medium Laser Assault Rifle Heavy Assault Rifle Heavy Assault Rifle Heavy Assault Rifle Heavy Assault Rifle Mining Laser [Rating: 11] Favorites ----------- Power Ion Engine Engine Ion Engine Propulsion Light Treads Treads Light Treads Wheel Compact Wheel Utility Large Storage Unit Device Improved Terrain Scanner Storage Large Storage Unit Weapon Heavy Assault Rifle Energy Gun EM Shotgun Ballistic Gun Heavy Assault Rifle Launcher Mini Grenade Launcher Build | -11 -10 -10 -10 -9 ------- Run | Scr Mat Min Exi Min Slots Evolved . | . . . . . Power . | . . . . . Propulsion . | . . . . . Utility . | . . . . . Weapon . | . . . . . Parts Attached 29 | 8 12 5 2 2 Power 2 | 1 1 . . . Engine 2 | 1 1 . . . Core . | . . . . . Reactor . | . . . . . Propulsion 6 | 2 3 . . 1 Treads 5 | 1 3 . . 1 Leg . | . . . . . Wheel 1 | 1 . . . . Hover . | . . . . . Flight . | . . . . . Utility 9 | 3 4 . 2 . Device 2 | 2 . . . . Storage 7 | 1 4 . 2 . Processor . | . . . . . Hackware . | . . . . . Protection . | . . . . . Artifact . | . . . . . Weapon 12 | 2 4 5 . 1 Energy Gun 3 | 1 2 . . . Energy Cannon . | . . . . . Ballistic Gun 7 | 1 2 3 . 1 Ballistic Cannon . | . . . . . Launcher 2 | . . 2 . . Special Weapon . | . . . . . Impact Weapon . | . . . . . Slashing Weapon . | . . . . . Piercing Weapon . | . . . . . Special Melee Weapon . | . . . . . Unidentified Prototypes . | . . . . . Parts Lost 5 | . 4 . . 1 Power 1 | . 1 . . . Propulsion 1 | . 1 . . . Utility . | . . . . . Weapon 3 | . 2 . . 1 Highest Loss Streak 3 | . 3 . . 1 Average Slot Usage (%) 100 | . 100 100 100 100 Engine 14 | . 14 14 14 14 Treads 27 | . 27 28 28 28 Storage 27 | . 26 28 28 28 Energy Gun 3 | . 7 . . . Ballistic Gun 23 | . 20 25 28 28 Naked Turns . | . . . . . Heaviest Build 75 | 14 43 43 75 75 Greatest Support 40 | 16 40 40 40 40 Greatest Overweight (x) 1 | 1 1 1 1 1 Average Overweight (x) . | . . 1 1 1 Largest Inventory Capacity 20 | 6 16 16 20 20 Average Capacity 15 | 5 14 16 18 20 Most Carried 20 | 6 16 16 20 20 Average Carried 15 | 3 14 16 18 19 Final Capacity 20 | 6 16 16 20 20 Final Carried 20 | 6 16 16 20 19 Class Distribution -------------------- 80% | Mutant 19% | Hauler-Mutant Dominant Class ---------------- Mutant | -10/Materials Mutant | -10/Mines Hauler-Mutant | -10/Exiles Hauler-Mutant | -9/Mines Resources | -11 -10 -10 -10 -9 ----------- Run | Scr Mat Min Exi Min Matter Collected 753 | 281 257 36 . 179 Remotely 90 | 90 . . . . Salvage Created 1121 | 102 729 28 . 262 Parts 65 | 6 36 11 . 12 Haulers Intercepted 2 | . 2 . . . Recyclers Shooed . | . . . . . Parts Field Recycled . | . . . . . Retrieved Matter . | . . . . . Parts Self-Destructed . | . . . . . Prevented . | . . . . . Kills | -11 -10 -10 -10 -9 ------- Run | Scr Mat Min Exi Min Combat Hostiles Destroyed 27 | . 15 6 . 6 Guns 21 | . 14 1 . 6 AOE 6 | . 1 5 . . Classes Destroyed 9 | 2 5 1 . 1 Worker 1 | . 1 . . . Builder 1 | . . 1 . . Tunneler 1 | 1 . . . . Hauler 2 | . 2 . . . Recycler 1 | 1 . . . . Watcher 2 | . 2 . . . Swarmer 9 | . 3 6 . . Grunt 17 | . 12 . . 5 Brawler 1 | . . . . 1 Best Kill Streak 6 | 2 6 4 . 4 Combat Bots Only 5 | . 5 3 . 4 Max Kills in Single Turn 4 | 1 2 4 . 1 Gunslinging . | . . . . . Exploded 3 | . 1 3 . . Melee . | . . . . . Uniques/NPCs Destroyed . | . . . . . Combat | -11 -10 -10 -10 -9 -------- Run | Scr Mat Min Exi Min Damage Taken 1195 | . 852 139 . 204 Core 257 | . 136 35 . 86 Absorbed by Shields . | . . . . . Core Remaining (%) 100 | 100 . . . . Volleys Fired 85 | 6 57 3 . 19 Largest 2 | 2 2 2 . 2 Hottest 90 | 70 90 46 . 46 Shots Fired 168 | 12 114 4 . 38 Gun 166 | 12 114 2 . 38 Cannon . | . . . . . Launcher 2 | . . 2 . . Special . | . . . . . Kinetic 116 | 6 70 2 . 38 Thermal 18 | 6 12 . . . Explosive 2 | . . 2 . . Electromagnetic 32 | . 32 . . . Robot Hit Streak 11 | 3 11 6 . 9 Robot Miss Streak 4 | 1 4 . . 1 Penetration Max . | . . . . . Secondary Targets 4 | . 3 . . 1 Max Gunslinging Chain 1 | . 1 . . 1 Shots Hit Robots 118 | 8 79 3 . 28 Core Hits 54 | 3 33 7 . 11 Critical Hits 3 | . 1 . . 2 Critical Kills 3 | . 1 . . 2 Critical Parts Destroyed . | . . . . . Melee Attacks . | . . . . . Impact . | . . . . . Slashing . | . . . . . Piercing . | . . . . . Sneak Attacks . | . . . . . Combat Hostiles . | . . . . . Follow-up Attacks . | . . . . . Damage Inflicted 2072 | 89 1279 322 . 382 Guns 1542 | 89 1054 17 . 382 Cannons . | . . . . . Explosions 527 | . 222 305 . . Melee . | . . . . . Ramming 3 | . 3 . . . Kinetic 1045 | 39 607 17 . 382 Thermal 360 | 50 310 . . . Explosive 305 | . . 305 . . Electromagnetic 359 | . 359 . . . Impact . | . . . . . Slashing . | . . . . . Piercing . | . . . . . Highest Corruption . | . . . . . Average Corruption . | . . . . . Corruption Purged . | . . . . . Overload Shots . | . . . . . Overflow Damage 63 | . 59 4 . . Projectiles . | . . . . . Explosions 63 | . 59 4 . . Melee . | . . . . . Knockbacks . | . . . . . Impact . | . . . . . Kinetic . | . . . . . Secondary . | . . . . . Self-Inflicted Damage 150 | . 119 31 . . Shots 3 | . 2 1 . . Rammed 1 | . 1 . . . Targets Rammed 1 | . 1 . . . Kicked . | . . . . . Crushed . | . . . . . Highest Temperature 352 | 18 352 . . 4 Average Temperature 72 | 10 86 . . 1 Received Heat Transfer 450 | . 336 . . 114 Effects 1 | . 1 . . . Energy Bleed 1 | . 1 . . . Siege Activations . | . . . . . Robots Corrupted . | . . . . . Combat Hostiles . | . . . . . Parts Fried 1 | . 1 . . . Impact Corruptions . | . . . . . Robots Melted . | . . . . . Combat Hostiles . | . . . . . Parts Melted 1 | . 1 . . . Heat Transferred 557 | 148 409 . . . Parts Sabotaged . | . . . . . Parts Stolen . | . . . . . Parts Stripped . | . . . . . Power Chain Reactions 1 | . 1 . . . Missiles Intercepted . | . . . . . Alert | -11 -10 -10 -10 -9 ------- Run | Scr Mat Min Exi Min Peak Influence 270 | 10 270 162 . 170 Initial 6 | . 6 2 . . Average 88 | 5 85 109 . 104 Maximum Alert Level 1 | . 1 . . . Low Security (%) 95 | 100 92 100 . 100 Level 1 4 | . 7 . . . Level 2 . | . . . . . Level 3 . | . . . . . Level 4 . | . . . . . Level 5 . | . . . . . High Security . | . . . . . Max Security . | . . . . . Squads Dispatched 3 | . 3 . . . Investigation 3 | . 3 . . . Extermination . | . . . . . Reinforcement . | . . . . . Assault . | . . . . . Garrison . | . . . . . Intercept . | . . . . . Construction Impeded . | . . . . . Haulers Reinforced . | . . . . . Stealth | -11 -10 -10 -10 -9 --------- Run | Scr Mat Min Exi Min Distress Signals 1 | . 1 . . . Communications Jammed . | . . . . . Distress Signals . | . . . . . Times Spotted 37 | . 22 6 . 9 Peak Tracking Total 5 | . 5 3 . 4 Tactical Retreats 2 | . . . . 2 Traps | -11 -10 -10 -10 -9 ------- Run | Scr Mat Min Exi Min Traps Triggered 1 | . 1 . . . Indirectly . | . . . . . Trap Hack Attempts . | . . . . . Triggered . | . . . . . Disarmed . | . . . . . Reprogrammed . | . . . . . Reused . | . . . . . Traps Extracted . | . . . . . Installed . | . . . . . Triggered . | . . . . . Machines | -11 -10 -10 -10 -9 ---------- Run | Scr Mat Min Exi Min Machines Disabled 4 | . 3 1 . . Max in Single Turn 3 | . 3 1 . . Machines Sabotaged . | . . . . . Garrisons Compromised . | . . . . . Overloaded Fab Kills . | . . . . . Fab Network Shutdowns . | . . . . . Hacking | -11 -10 -10 -10 -9 --------- Run | Scr Mat Min Exi Min Machines Accessed 11 | . 10 . 1 . Terminals 8 | . 8 . . . Fabricators . | . . . . . Repair Stations . | . . . . . Recycling Units 2 | . 2 . . . Scanalyzers . | . . . . . Garrison Access . | . . . . . Total Hacks 21 | . 20 . 1 . Successful 8 | . 7 . 1 . Failed 13 | . 13 . . . Catastrophic 3 | . 3 . . . Database Lockouts . | . . . . . Manual 11 | . 11 . . . Terminals 18 | . 18 . . . Fabricators . | . . . . . Repair Stations . | . . . . . Recycling Units 2 | . 2 . . . Scanalyzers . | . . . . . Garrison Access . | . . . . . Terminal Hacks 5 | . 4 . 1 . Record 1 | . . . 1 . Part Schematic 1 | . 1 . . . Prototype ID Bank 2 | . 2 . . . Unreport Threat 1 | . 1 . . . Fabricator Hacks . | . . . . . Repair Station Hacks . | . . . . . Recycling Unit Hacks . | . . . . . Scanalyzer . | . . . . . Garrison Access Hacks . | . . . . . Unauthorized Hacks 3 | . 3 . . . Terminals 1 | . 1 . . . Operators 1 | . 1 . . . Fabricators . | . . . . . Repair Stations . | . . . . . Recycling Units 2 | . 2 . . . Tunnel 2 | . 2 . . . Scanalyzers . | . . . . . Garrison Access . | . . . . . Data Cores Recovered . | . . . . . Used . | . . . . . Hacking Detections 8 | . 8 . . . Full Trace Events 1 | . 1 . . . Feedback Events . | . . . . . Feedback Blocked . | . . . . . Robot Schematics Acquired . | . . . . . Robots Built . | . . . . . Matter . | . . . . . Time . | . . . . . Total Robot Build Rating . | . . . . . Part Schematics Acquired 1 | . 1 . . . Parts Built . | . . . . . Matter . | . . . . . Time . | . . . . . Total Part Build Rating . | . . . . . Parts Repaired . | . . . . . Time . | . . . . . Parts Recycled . | . . . . . Recycled Matter . | . . . . . Retrieved Matter . | . . . . . Retrieved Components . | . . . . . Parts Scanalyzed . | . . . . . Part Schematics Acquired . | . . . . . Parts Damaged . | . . . . . Bothacking | -11 -10 -10 -10 -9 ------------ Run | Scr Mat Min Exi Min Used RIF Installer . | . . . . . Robots Hacked . | . . . . . Non-combat . | . . . . . Combat . | . . . . . Robot Hacks Applied . | . . . . . Relay Couplers Released . | . . . . . Robots Rewired . | . . . . . Allies Hacked . | . . . . . Hacks Repelled . | . . . . . Allies | -11 -10 -10 -10 -9 -------- Run | Scr Mat Min Exi Min Total Allies . | . . . . . Largest Group . | . . . . . Highest-Rated Group . | . . . . . Highest-Rated Ally . | . . . . . Total Orders . | . . . . . Ally Attacks . | . . . . . Total Damage . | . . . . . Kills . | . . . . . Allies Corrupted . | . . . . . Allies Melted . | . . . . . Intel | -11 -10 -10 -10 -9 ------- Run | Scr Mat Min Exi Min Robot Analysis Total . | . . . . . Derelict Logs Recovered 1 | . . 1 . . Drone Launches . | . . . . . Drone Recoveries . | . . . . . Exploration | -11 -10 -10 -10 -9 ------------- Run | Scr Mat Min Exi Min Turns Passed 2717 | 98 1341 452 630 196 Spaces Moved 1345 | 61 639 235 345 65 Core 3 | 3 . . . . Treads 1236 | . 591 235 345 65 Legs . | . . . . . Wheels 106 | 58 48 . . . Hover . | . . . . . Flight . | . . . . . Fastest Speed 50 | 50 100 180 180 180 Average Speed 172 | 98 171 180 180 180 Slowest Speed 180 | 100 180 180 180 180 Overloaded Moves . | . . . . . Propulsion Burnouts . | . . . . . Robots Hopped . | . . . . . Cave-ins Triggered . | . . . . . Exploration Rate (%) 47 | 4 98 48 70 16 Regions Visited 4 Branch Regions 3 Pre-discovered Areas 2 | . 2 . . . Known Exits Taken . | . . . . . Unknown Exits Taken 4 | 1 1 1 1 . Scrap Searched 1 | . . 1 . . Spaces Dug . | . . . . . Terrain Destroyed 61 | . 45 16 . . Melee . | . . . . . Projectile . | . . . . . AOE 61 | . 45 16 . . Terrain Rammed . | . . . . . Walls Destroyed . | . . . . . Machines Disabled . | . . . . . Actions | -11 -10 -10 -10 -9 --------- Run | Scr Mat Min Exi Min Total 1578 | 83 774 258 356 107 Wait 56 | . 22 16 . 18 Move 1341 | 60 638 234 344 65 Hop . | . . . . . Pick Up 42 | 8 27 . 6 1 Fast Attach 7 | 6 1 . . . Attach 7 | 1 5 . . 1 Detach . | . . . . . Swap 15 | 1 6 5 2 1 Drop 24 | 1 17 . 4 2 Fire 85 | 6 57 3 . 19 Melee . | . . . . . Ram . | . . . . . Kick . | . . . . . Crush 1 | . 1 . . . Escape Stasis . | . . . . . Rewire . | . . . . . Trap . | . . . . . Miscellaneous . | . . . . . Route ------- -11/Scrapyard -10/Materials (discovered 4 exits: [*Mat x3] / [*Min]) -10/Mines (discovered 2 exits: [*Mat] / *Exi) -10/Exiles -9/Mines History --------- Turn | Location | Event 14 | -11/Scrapyard | Discovered new exit (range 15) 99 | -11/Scrapyard | Entered Materials 350 | -10/Materials | Build established: Mutant 370 | -10/Materials | Discovered new exit (range 6) 449 | -10/Materials | Discovered new exit (range 12) 598 | -10/Materials | Lost 3 parts (1p2w) 715 | -10/Materials | Core integrity fell below 50% 1121 | -10/Materials | Discovered new exit (range 16) 1264 | -10/Materials | Discovered new exit (range 16) 1440 | -10/Materials | Entered Mines 1472 | -10/Mines | Met a Derelict bent on vengeance 1473 | -10/Mines | Discovered new exit (range 16) 1538 | -10/Mines | Learned 2 Materials zone layouts 1633 | -10/Mines | Found a hidden stash of uninstalled traps 1863 | -10/Mines | Deemed a non-threat by the Exiles lab entrance 1863 | -10/Mines | Discovered new exit (range 5) 1892 | -10/Mines | Entered Exiles 1892 | -10/Exiles | Found Exiles lab abandoned 2474 | -10/Exiles | Build established: Hauler-Mutant 2500 | -10/Exiles | Discovered new exit (range 14) 2522 | -10/Exiles | Entered Mines 2531 | -9/Mines | Core integrity fell below 20% 2718 | -9/Mines | Destroyed by G-34 Mercenary with Small Laser Last Messages --------------- 02543_ Acquired 43 matter. 02546_ Dropped Hcp. Storage Unit. 02547_ Acquired Lgt. Armor Plating. 02604_ G-34 Mercenary suffers critical hit. 02604_ G-34 Mercenary destroyed. 02619_ G-34 Mercenary suffers critical hit. 02619_ G-34 Mercenary destroyed. 02628_ G-47 Trooper destroyed. 02631_ G-34 Mercenary destroyed. 02634_ Acquired 35 matter. 02636_ K-01 Serf collects debris. 02640_ Acquired 41 matter. 02641_ K-01 Serf collects debris. 02685_ T-07 Excavator is excavating. 02686_ U-05 Engineer lays Concrete. 02689_ U-05 Engineer builds a Wall. 02689_ T-07 Excavator is excavating. 02693_ U-05 Engineer builds a Wall. 02693_ T-07 Excavator is excavating. 02713_ Hvy. Assault Rifle destroyed. Map ----- +----------------------------------------------------+ | ???????????????????????????????????? | | ???????????????????????????????????? | | ???????????????????????????????????? | | ???????????????????????????????????? | | ???????????????????????????????????? | | ???????????????????????????????????? | | ???????????????????????????????????? | | ???????????????????????????????????? | | ???????????????????????????????????? | | ???????????????????????????????????? | | ???????????????????????????????????? | | ???????????????????????????????????? | | ???????????????????????????????????? | | ???????????????????????????????????? | | ???????????????????????????????????? | | ???????????????????????????????????? | | ???????????????????????????????????? | | ???????????????????????????????????? | | ???????????????????????????????????? | | ??????????###??????????????????????? | | ??????????# ??????????????????????? | | ??????????# #??????????????????????? | | ??????????# #??????????????????????? | | ??????????# #??????????????????????? | | ??????????# #??????????????????????? | | ??????????#@#??????????????????????? | | ??????????# #??????????????????????? | | ??????????# #??????????????????????? | | ??????##### #??????????????????????? | | ??????# #?????#????????????????? | | ??????# ### #????? ??????????? ????? | | ??????# #?# #????# #????????? #????? | | ??????# #?# #????# #????????? #????? | | ?????# #?# #????# #????????? #????? | | ?????# ?# #????# #????????? #????? | | ?????# ?#g#????# #???????? #????? | | ?????###### ####?# #???????? #????? | | ????????# #?# #???##### ####?? | | ????????# """ #?# #####!! # # ### | | ????????# """ ### == !%* | | ????????# """ ####==* # | | ????????# ### #??##% # | | ????????# #?# #???# ## ## | | ????????# ? #???# ##????? | | ????????# #####???# ##?????? | | ????????########???????# ##??????? | | ???????????????????????# ##??????? | | ???????????????????????# #??????? | | ???????????##########?## #??????? | | ???????????# ### ##??????? | +----------------------------------------------------+ Best States ------------- Heat Dissipation 25 Energy Generation 10 Energy Capacity 250 Matter Stores 300 Matter Capacity 300 Sight Range 16 Terrain Scan Range 16 Terrain Scan Density 10 Evasion (%) 40 Recoil Reduction 2 Item Schematics ----------------- Hcp. Storage Unit | -10/Materials | Hacked Robot Schematics ------------------ None Fabricated ------------ Nothing Alien Tech Used ----------------- None Achievements -------------- None Challenges ------------ None Game ------ Seed MissileGrenadePenetrator Manual? 0 Play Time 00:12:05 Cumulative 287.9 hours Start 2021.09.02 @ 18:15:49 End 2021.09.02 @ 18:27:05 Sessions 1 Manual Loads 0 Difficulty Rogue Special Mode None Game No. 296 Rogue 296 Adventurer 0 Explorer 0 Win Type - Total 4 Types 4/0/0/0/0/0/0/0/0 Lore% 64 Gallery% 79 Achievement% 61 Wizard Run 0 Options --------- ASCII 0 Keyboard 0 Movement Numpad Keybinds 0 Fullscreen 2 Font 24/Terminus Map View 76x50 Tactical HUD 1 Map Filters NONE Filters NONE Steam 1 RUN: af68ebe9-5491-476b-9bd5-1a32e194d0d6